Cogmind - Beta 14 @@@ ROGUE MODE // 2024.08.18 @ 02:32:29 Player: ktur Result: Destroyed by G-50 Soldier with Heavy Laser Performance ------------- Evolutions (5) 2500 Regions Visited (8) 1600 Robots Destroyed (33) 165 Value Destroyed (806) 806 Prototype IDs (25) 500 Alien Tech Used (0) 0 Bonus (2363) 2363 TOTAL SCORE: 7934 Bonus ------- High Alert Combat Kills 50 Follower Combat Kills 546 Delivered SUBCON Basin 2000 Registered with UFD 300 Friendly Fire -533 Cogmind --------- Core Integrity 0/1000 Matter 290/300 Energy 100/100 System Corruption 7% Temperature Cool (20) Movement Flying (30) Location -5/Upper Caves Parts ------- > --- POWER (1) -------- (None) > --- PROPULSION (4) --- Antigrav System Improved Diametric Drive > --- UTILITY (10) ----- Advanced Visual Processing Unit Advanced Terrain Scan Processor Melee Analysis Suite Improved Melee Analysis Suite Core Analyzer Improved Utility Shielding Hacking Suite System Shield A0-MCA's Component Scanner Tech Extrapolator > --- WEAPON (2) ------- CPS Tube Makeshift Axe > --- INVENTORY (5) ---- Improved Utility Shielding Enhanced Scrap Shield CPS Tube (2) Multitool Peak State ------------ > --- POWER ------------ Light Fission Core > --- PROPULSION ------- Improved Titanium Leg Armored Leg Arachnoskeleton > --- UTILITY ---------- Large Storage Unit Advanced Visual Processing Unit Advanced Terrain Scanner Advanced Terrain Scan Processor Improved Melee Analysis Suite Core Analyzer Improved Utility Shielding Improved Medium Armor Plating Medium Reactive Plating A0-MCA's Component Scanner > --- WEAPON ----------- Tiamat Missile Launcher Ripper > --- INVENTORY -------- Micro Fission Core Antigrav System Improved Matter Compressor Improved Utility Shielding Improved Weapon Shielding System Shield Authchip [Armor] Tech Extrapolator Advanced Assault Cannon CPS Tube CPS Tube CPS Tube CPS Tube CPS Tube Multitool [Rating: 92] Favorites ----------- Power Ion Engine Engine Ion Engine Power Core Light Fission Core Propulsion Subdweller Monowheel Treads Improved Treads Leg Armored Leg Wheel Subdweller Monowheel Hover Unit Antigrav System Flight Unit Improved Diametric Drive Utility Humpback Device V3-11A's Pendant Storage Humpback Processor Advanced Visual Processing Unit Hackware System Shield Protection Improved Utility Shielding Weapon Ripper Energy Gun Heavy EM Pulse Gun Energy Cannon Subdweller Beam Cannon Ballistic Cannon Advanced Assault Cannon Launcher Subdweller Shrapnel Launcher Special Weapon Mining Laser Slashing Weapon Ripper Build | -11 -10 -10 -10 -7 -7 -5 -5 -5 ------- Run | Yrd Mat Min Sub Rec Scr Fac Upp Upp Slots Evolved 10 | . . . . . . 10 . . Power . | . . . . . . . . . Propulsion 2 | . . . . . . 2 . . Utility 8 | . . . . . . 8 . . Weapon . | . . . . . . . . . Parts Attached 85 | 7 6 3 14 6 5 39 4 1 Power 6 | 1 1 . . 1 1 2 . . Engine 4 | 1 1 . . 1 1 . . . Core 2 | . . . . . . 2 . . Reactor . | . . . . . . . . . Propulsion 20 | 2 1 1 6 2 4 3 1 . Treads 8 | 2 1 1 3 1 . . . . Leg 4 | . . . . . 2 2 . . Wheel 6 | . . . 3 1 2 . . . Hover 1 | . . . . . . . 1 . Flight 1 | . . . . . . 1 . . Utility 32 | 2 1 . 3 . . 24 1 1 Device 5 | 1 . . 1 . . 3 . . Storage 5 | 1 1 . 2 . . 1 . . Processor 11 | . . . . . . 10 . 1 Hackware 3 | . . . . . . 3 . . Protection 8 | . . . . . . 7 1 . Artifact . | . . . . . . . . . Weapon 27 | 2 3 2 5 3 . 10 2 . Energy Gun 9 | 2 3 1 2 1 . . . . Energy Cannon 1 | . . . . 1 . . . . Ballistic Gun . | . . . . . . . . . Ballistic Cannon 5 | . . . . . . 5 . . Launcher 3 | . . . 1 . . 2 . . Special Weapon 6 | . . 1 1 1 . 2 1 . Impact Weapon . | . . . . . . . . . Slashing Weapon 3 | . . . 1 . . 1 1 . Piercing Weapon . | . . . . . . . . . Special Melee Weapon . | . . . . . . . . . Unidentified Prototypes 1 | . . . 1 . . . . . Corrupted Parts 1 | . . . . . . 1 . . System Corruption 2 | . . . . . . 2 . . Parts Lost 9 | . . . . . . 9 . . Power 1 | . . . . . . 1 . . Propulsion 3 | . . . . . . 3 . . Utility 4 | . . . . . . 4 . . Weapon 1 | . . . . . . 1 . . Highest Loss Streak 8 | . . . . . . 8 . . To Critical Strikes . | . . . . . . . . . Average Slot Usage (%) 90 | . 99 100 97 85 85 76 74 82 Engine 12 | . 13 14 14 14 14 2 . . Treads 13 | . 27 28 25 9 . . . . Leg 3 | . . . . . 7 13 . . Wheel 9 | . . . 2 18 20 . . . Device 6 | . 14 14 11 . . 4 . . Storage 13 | . 14 14 14 14 14 4 . . Processor 2 | . . . . . . 29 35 41 Energy Gun 8 | . 28 26 16 3 . . . . Energy Cannon 4 | . . . . 5 14 . . . Special Weapon 1 | . . 1 3 4 . . 5 5 Slashing Weapon 9 | . . . 8 14 14 5 5 5 Peak Build Rating 92 | 7 11 12 36 37 32 92 63 66 Average Rating 28 | 5 8 11 20 36 26 81 61 64 On Entrance 25 | . 7 11 12 36 19 32 53 63 Naked Turns . | . . . . . . . . . Heaviest Build 220 | 15 32 32 216 216 220 66 6 6 Greatest Support 86 | 40 40 43 43 40 40 86 7 7 Greatest Overweight (x) 10 | . . . 10 10 10 . . . Average Overweight (x) 4 | . . . 3 7 8 . . . Largest Inventory Capacity 35 | 8 15 15 35 35 35 35 5 5 Average Capacity 27 | 7 12 15 26 35 35 14 5 5 Most Carried 35 | 5 15 15 35 35 35 33 5 5 Average Carried 26 | 2 8 14 25 34 32 14 4 5 Final Capacity 35 | 8 15 15 35 35 35 5 5 5 Final Carried 35 | 4 15 15 35 21 35 4 5 5 Class Distribution -------------------- 48% | Hauler-Mutant 42% | Mutant 5% | Derelict-Assassin Dominant Class ---------------- Mutant | -10/Materials Mutant | -10/Mines Mutant | -10/Subcaves Hauler-Mutant | -7/Recycling Hauler-Mutant | -7/Scraptown Derelict-Assassin | -5/Factory Derelict-Sprinter | -5/Upper Caves Derelict-Sprinter | -5/Upper Caves Resources | -11 -10 -10 -10 -7 -7 -5 -5 -5 ----------- Run | Yrd Mat Min Sub Rec Scr Fac Upp Upp Matter Collected 1604 | 270 81 30 220 90 20 604 289 . Remotely . | . . . . . . . . . Salvage Created 1218 | 120 86 . 59 . . 953 . . Parts 71 | 12 5 . 4 . . 50 . . Haulers Intercepted 3 | . 1 . . . . 2 . . Recyclers Shooed 3 | 1 . . . . . 2 . . Parts Field Recycled . | . . . . . . . . . Retrieved Matter . | . . . . . . . . . Parts Self-Destructed 10 | . . . 10 . . . . . Prevented . | . . . . . . . . . Kills | -11 -10 -10 -10 -7 -7 -5 -5 -5 ------- Run | Yrd Mat Min Sub Rec Scr Fac Upp Upp Combat Hostiles Destroyed 15 | . 3 . . . . 12 . . Melee 4 | . . . . . . 4 . . Guns 3 | . 3 . . . . . . . AOE 8 | . . . . . . 8 . . Classes Destroyed 14 | 2 2 . 2 . . 8 . . Worker 1 | . . . . . . 1 . . Builder 3 | . . . . . . 3 . . Tunneler 3 | 3 . . . . . . . . Hauler 3 | . 1 . . . . 2 . . Recycler 4 | 1 . . . . . 3 . . Turret 2 | . . . 2 . . . . . Swarmer 7 | . 3 . . . . 4 . . Grunt 1 | . . . . . . 1 . . Protector 2 | . . . . . . 2 . . Sentry 1 | . . . . . . 1 . . Specialist 1 | . . . . . . 1 . . Hunter 1 | . . . . . . 1 . . Programmer 2 | . . . . . . 2 . . Subdweller 2 | . . . 2 . . . . . Best Kill Streak 7 | 3 3 . 2 . . 7 . . Combat Bots Only 4 | . 3 . . . . 4 . . Max Kills in Single Turn 4 | 2 1 . 2 . . 4 . . Gunslinging . | . . . . . . . . . Exploded 3 | . . . . . . 3 . . Melee 1 | . . . . . . 1 . . Uniques/NPCs Destroyed . | . . . . . . . . . Combat | -11 -10 -10 -10 -7 -7 -5 -5 -5 -------- Run | Yrd Mat Min Sub Rec Scr Fac Upp Upp Hostile Shots Fired 367 | . 9 . 5 33 . 317 . 3 Missed 134 | . 2 . 3 13 . 115 . 1 Damage Taken 3544 | . 59 . 148 155 . 3142 . 40 Core 1097 | . 18 . 36 33 . 990 . 20 Absorbed by Shields . | . . . . . . . . . Redirected to Shielding 82 | . . . . . . 82 . . Ignored by Resistances 117 | . . . . . . 117 . . Regen/Repaired (Parts) 304 | . . . . . 304 . . . Core Remaining (%) 82 | 100 . . . . 65 . . . Volleys Fired 64 | 5 6 3 28 4 . 18 . . Largest 2 | 2 2 1 1 1 . 1 . . Hottest 100 | 100 100 100 100 80 . 48 . . Shots Fired 74 | 10 12 3 28 4 . 17 . . Gun 22 | 10 12 . . . . . . . Cannon 11 | . . . . 4 . 7 . . Launcher 13 | . . . 3 . . 10 . . Special 28 | . . 3 25 . . . . . Kinetic 12 | . . . 3 . . 9 . . Thermal 54 | 10 12 3 25 4 . . . . Explosive 8 | . . . . . . 8 . . Electromagnetic . | . . . . . . . . . Robot Hit Streak 7 | 3 5 . 2 3 . 7 . . Robot Miss Streak 2 | 2 2 . 1 1 . 2 . . Penetration Max . | . . . . . . . . . Secondary Targets . | . . . . . . . . . Shots Hit Robots 55 | 6 8 . 3 3 . 35 . . Core Hits 62 | 5 5 . 4 1 . 47 . . Critical Kills . | . . . . . . . . . Critical Parts Destroyed . | . . . . . . . . . Critical Strikes 9 | 4 2 . . . . 3 . . Burn 6 | 4 2 . . . . . . . Sever 3 | . . . . . . 3 . . Melee Attacks 84 | . . . 33 . . 48 2 1 Impact . | . . . . . . . . . Slashing 84 | . . . 33 . . 48 2 1 Piercing . | . . . . . . . . . Sneak Attacks 7 | . . . 1 . . 6 . . Combat Hostiles . | . . . . . . . . . Follow-up Attacks . | . . . . . . . . . Damage Inflicted 4297 | 86 113 . 614 86 . 3398 . . Guns 199 | 86 113 . . . . . . . Cannons 145 | . . . . 86 . 59 . . Explosions 2719 | . . . 540 . . 2179 . . Melee 1234 | . . . 74 . . 1160 . . Ramming . | . . . . . . . . . Kinetic 924 | . . . 540 . . 384 . . Thermal 285 | 86 113 . . 86 . . . . Explosive 1854 | . . . . . . 1854 . . Electromagnetic . | . . . . . . . . . Impact . | . . . . . . . . . Slashing 1234 | . . . 74 . . 1160 . . Piercing . | . . . . . . . . . Highest Corruption 7 | . . . . . . 7 7 7 Average Corruption 6 | . . . . . . 6 7 7 Corruption Purged . | . . . . . . . . . Corruption Blocked . | . . . . . . . . . Effects 20 | . . . . . . 15 5 . Message Errors 5 | . . . . . . 3 2 . Matter Fused 4 | . . . . . . 3 1 . Heat Flow Errors 3 | . . . . . . 2 1 . Energy Discharges 2 | . . . . . . 2 . . Data Loss (minor) 4 | . . . . . . 3 1 . Data Loss (major) 1 | . . . . . . 1 . . Weapon Failures 1 | . . . . . . 1 . . Overload Shots . | . . . . . . . . . Overflow Damage 111 | . . . 64 . . 47 . . Projectiles . | . . . . . . . . . Explosions 37 | . . . 30 . . 7 . . Melee 74 | . . . 34 . . 40 . . Knockbacks . | . . . . . . . . . Impact . | . . . . . . . . . Kinetic . | . . . . . . . . . Secondary . | . . . . . . . . . Self-Inflicted Damage 84 | . . . 36 . . 48 . . Shots 2 | . . . 1 . . 1 . . Rammed . | . . . . . . . . . Targets Rammed . | . . . . . . . . . Kicked . | . . . . . . . . . Crushed . | . . . . . . . . . Highest Temperature 276 | 99 156 60 . 190 . 276 139 . Average Temperature 89 | 48 66 30 . 102 . 138 83 . Received Heat Transfer 891 | . . . 15 42 . 816 . 18 Siege Activations . | . . . . . . . . . Robots Corrupted . | . . . . . . . . . Combat Hostiles . | . . . . . . . . . Parts Fried . | . . . . . . . . . Impact Corruptions . | . . . . . . . . . Robots Melted . | . . . . . . . . . Combat Hostiles . | . . . . . . . . . Parts Melted 8 | 3 4 . . . . 1 . . Heat Transferred 1147 | 555 481 . . 111 . . . . Parts Sabotaged . | . . . . . . . . . Parts Stolen . | . . . . . . . . . Parts Stripped . | . . . . . . . . . Power Chain Reactions . | . . . . . . . . . Alert | -11 -10 -10 -10 -7 -7 -5 -5 -5 ------- Run | Yrd Mat Min Sub Rec Scr Fac Upp Upp Peak Influence 659 | 20 105 40 . 207 . 659 . . Initial 134 | . 13 40 . 134 . . . . Average 94 | 8 73 40 . 98 . 118 . . Maximum Alert Level 2 | . . . . 1 . 2 . . Low Security (%) 91 | 100 100 100 . 99 . 75 . . Level 1 3 | . . . . . . 9 . . Level 2 5 | . . . . . . 15 . . Level 3 . | . . . . . . . . . Level 4 . | . . . . . . . . . Level 5 . | . . . . . . . . . High Security . | . . . . . . . . . Max Security . | . . . . . . . . . Squads Dispatched 5 | . . . . . . 5 . . Investigation 2 | . . . . . . 2 . . Extermination 1 | . . . . . . 1 . . Reinforcement 2 | . . . . . . 2 . . Assault . | . . . . . . . . . Garrison . | . . . . . . . . . Intercept . | . . . . . . . . . Searches Triggered . | . . . . . . . . . Construction Impeded 1 | . . . . . . 1 . . Haulers Reinforced . | . . . . . . . . . Active Scanning Responses . | . . . . . . . . . Cargo Convoy Interrupts 1 | . . . . . . 1 . . Stealth | -11 -10 -10 -10 -7 -7 -5 -5 -5 --------- Run | Yrd Mat Min Sub Rec Scr Fac Upp Upp Distress Signals 4 | . 1 . . . . 3 . . Communications Jammed . | . . . . . . . . . Distress Signals . | . . . . . . . . . Times Spotted 61 | . 4 . 12 4 . 37 . 4 Peak Tracking Total 14 | . 4 . 6 2 . 14 . 4 Tactical Retreats 5 | . . . 1 . . 4 . . Traps | -11 -10 -10 -10 -7 -7 -5 -5 -5 ------- Run | Yrd Mat Min Sub Rec Scr Fac Upp Upp Traps Triggered 2 | . 1 . 1 . . . . . Indirectly . | . . . . . . . . . Trap Hack Attempts . | . . . . . . . . . Triggered . | . . . . . . . . . Disarmed . | . . . . . . . . . Reprogrammed . | . . . . . . . . . Reused . | . . . . . . . . . Traps Extracted . | . . . . . . . . . Installed . | . . . . . . . . . Triggered . | . . . . . . . . . Machines | -11 -10 -10 -10 -7 -7 -5 -5 -5 ---------- Run | Yrd Mat Min Sub Rec Scr Fac Upp Upp Machines Disabled 4 | . . . 4 . . . . . Max in Single Turn 3 | . . . 3 . . . . . Machines Repaired . | . . . . . . . . . Machines Dismantled . | . . . . . . . . . Machines Sabotaged . | . . . . . . . . . Overloaded Fab Kills . | . . . . . . . . . Hacking | -11 -10 -10 -10 -7 -7 -5 -5 -5 --------- Run | Yrd Mat Min Sub Rec Scr Fac Upp Upp Machines Accessed 23 | . . . 3 11 3 6 . . Terminals 7 | . . . . 4 . 3 . . Fabricators 1 | . . . . . . 1 . . Repair Stations . | . . . . . . . . . Recycling Units 8 | . . . . 7 . 1 . . Scanalyzers . | . . . . . . . . . Garrison Access 1 | . . . . . . 1 . . Total Hacks 43 | . . . 3 16 15 9 . . Successful 32 | . . . 3 9 15 5 . . Failed 11 | . . . . 7 . 4 . . Catastrophic 2 | . . . . 1 . 1 . . Database Lockouts . | . . . . . . . . . Manual 21 | . . . . 16 . 5 . . Terminals 11 | . . . . 6 . 5 . . Fabricators 2 | . . . . . . 2 . . Repair Stations . | . . . . . . . . . Recycling Units 11 | . . . . 10 . 1 . . Scanalyzers . | . . . . . . . . . Garrison Access 1 | . . . . . . 1 . . Terminal Hacks 20 | . . . 3 1 15 1 . . Record 9 | . . . . . 9 . . . Part Schematic 1 | . . . . 1 . . . . Robot Analysis 6 | . . . . . 6 . . . Open Door 1 | . . . 1 . . . . . Terminal Index 1 | . . . . . . 1 . . Derelict Proto ID Bank 1 | . . . 1 . . . . . Release Object 1 | . . . 1 . . . . . Fabricator Hacks 2 | . . . . . . 2 . . Load Schematic 1 | . . . . . . 1 . . Build 1 | . . . . . . 1 . . Repair Station Hacks . | . . . . . . . . . Recycling Unit Hacks . | . . . . . . . . . Scanalyzer . | . . . . . . . . . Garrison Access Hacks . | . . . . . . . . . Unauthorized Hacks 10 | . . . . 8 . 2 . . Terminals 2 | . . . . 1 . 1 . . Skim 2 | . . . . 1 . 1 . . Fabricators . | . . . . . . . . . Repair Stations 1 | . . . . . . 1 . . Recycling Units 7 | . . . . 7 . . . . Tunnel 7 | . . . . 7 . . . . Scrapoids 1 | . . . . . . 1 . . Scanalyzers . | . . . . . . . . . Garrison Access . | . . . . . . . . . Data Cores Recovered . | . . . . . . . . . Used . | . . . . . . . . . Hacking Detections 5 | . . . . 2 . 3 . . Full Trace Events 3 | . . . . 2 . 1 . . Feedback Events . | . . . . . . . . . Feedback Blocked . | . . . . . . . . . Robot Schematics Acquired . | . . . . . . . . . Robots Built . | . . . . . . . . . Authchips . | . . . . . . . . . Time . | . . . . . . . . . Total Robot Build Rating . | . . . . . . . . . Part Schematics Acquired 3 | . . . . 1 . . 2 . Parts Built 2 | . . . . . . 2 . . Authchips 1 | . . . . . . 1 . . Time 73 | . . . . . . 73 . . Total Part Build Rating 6 | . . . . . . 6 . . Parts Repaired . | . . . . . . . . . Time . | . . . . . . . . . Parts Recycled . | . . . . . . . . . Recycled Matter . | . . . . . . . . . Retrieved Matter . | . . . . . . . . . Retrieved Components . | . . . . . . . . . Parts Scanalyzed . | . . . . . . . . . Part Schematics Acquired . | . . . . . . . . . Parts Damaged . | . . . . . . . . . Bothacking | -11 -10 -10 -10 -7 -7 -5 -5 -5 ------------ Run | Yrd Mat Min Sub Rec Scr Fac Upp Upp Used RIF Installer . | . . . . . . . . . Robots Hacked . | . . . . . . . . . Non-combat . | . . . . . . . . . Combat . | . . . . . . . . . Robot Hacks Applied . | . . . . . . . . . Relay Couplers Released . | . . . . . . . . . Fabnet Peak Effective % . | . . . . . . . . . Robots Rewired . | . . . . . . . . . Allies Hacked . | . . . . . . . . . Hacks Repelled . | . . . . . . . . . Allies | -11 -10 -10 -10 -7 -7 -5 -5 -5 -------- Run | Yrd Mat Min Sub Rec Scr Fac Upp Upp Total Allies 18 | . . . 13 . . 5 . . Largest Group 8 | . . . 8 5 1 4 . . Highest-Rated Group 188 | . . . 152 95 19 188 . . Highest-Rated Ally 47 | . . . 19 19 19 47 . . Total Orders . | . . . . . . . . . Ally Attacks 140 | . . . 53 21 . 66 . . Total Damage 2482 | . . . 719 358 . 1405 . . Kills 23 | . . . 9 4 . 10 . . Allies Corrupted . | . . . . . . . . . Allies Melted . | . . . . . . . . . Intel | -11 -10 -10 -10 -7 -7 -5 -5 -5 ------- Run | Yrd Mat Min Sub Rec Scr Fac Upp Upp Robot Analysis Total 6 | . . . . . 6 . . . Derelict Logs Recovered 9 | . . . 3 . 5 . 1 . Drone Launches . | . . . . . . . . . Drone Recoveries . | . . . . . . . . . Exploration | -11 -10 -10 -10 -7 -7 -5 -5 -5 ------------- Run | Yrd Mat Min Sub Rec Scr Fac Upp Upp Turns Passed 11321 | 142 303 149 5029 1077 3563 919 129 10 Spaces Moved 4938 | 72 162 66 1641 545 1465 640 326 21 Core 8 | 4 . . . . . 4 . . Treads 1529 | 68 162 66 1233 . . . . . Legs 669 | . . . . . 185 484 . . Wheels 2233 | . . . 408 545 1280 . . . Hover . | . . . . . . . . . Flight 499 | . . . . . . 152 326 21 Fastest Speed 30 | 50 160 160 160 160 160 30 30 30 Average Speed 210 | 153 160 160 289 189 240 81 30 30 Slowest Speed 545 | 160 160 160 340 210 545 113 30 30 Overloaded Moves . | . . . . . . . . . Propulsion Burnouts . | . . . . . . . . . Robots Hopped 1 | . . . . . . 1 . . Cave-ins Triggered . | . . . . . . . . . Exploration Rate (%) 46 | 5 27 29 87 99 87 21 56 7 Regions Visited 8 Branch Regions 6 Pre-discovered Areas 11 | . . . 3 7 1 . . . Known Exits Taken 2 | . . . . . . 1 1 . Unknown Exits Taken 6 | 1 1 1 1 1 1 . . . Scrap Searched 17 | . . 1 11 . 3 . 2 . Spaces Dug 43 | . . . 8 . . 32 2 1 Terrain Destroyed 178 | . . . 53 1 . 121 2 1 Melee 28 | . . . 5 . . 20 2 1 Projectile 7 | . . . 4 1 . 2 . . AOE 143 | . . . 44 . . 99 . . Terrain Rammed . | . . . . . . . . . Walls Destroyed . | . . . . . . . . . Machines Disabled . | . . . . . . . . . Actions | -11 -10 -10 -10 -7 -7 -5 -5 -5 --------- Run | Yrd Mat Min Sub Rec Scr Fac Upp Upp Total 5593 | 91 194 100 1789 583 1509 951 353 23 Wait 232 | 1 1 27 12 15 1 157 18 . Move 4928 | 71 161 65 1640 544 1464 637 325 21 Hop 1 | . . . . . . 1 . . Pick Up 111 | 7 14 1 40 5 28 14 2 . Fast Attach 26 | 4 5 . 2 . . 12 2 1 Attach 30 | 3 . 1 2 2 3 18 1 . Detach 4 | . . . 1 . . 3 . . Swap 29 | . 1 2 10 4 2 9 1 . Drop 79 | . 6 1 21 6 11 32 2 . Fire 64 | 5 6 3 28 4 . 18 . . Melee 84 | . . . 33 . . 48 2 1 Ram . | . . . . . . . . . Kick . | . . . . . . . . . Crush . | . . . . . . . . . Escape Stasis . | . . . . . . . . . Rewire . | . . . . . . . . . Trap . | . . . . . . . . . Miscellaneous 5 | . . . . 3 . 2 . . Route ------- -11/Scrapyard -10/Materials (discovered 2 exits: [*Mat] / [*Min]) -10/Mines (discovered 2 exits: [*Mat] / *Sub) -10/Subcaves (discovered 3 exits: *Mat x2 / *Rec) -7/Recycling (discovered 2 exits: *Fac / *Scr) -7/Scraptown (discovered 2 exits: *Fac x2) -5/Factory -5/Upper Caves -5/Upper Caves (discovered 1 exit: [*Fac]) History --------- Turn | Location | Event 3 | -11/Scrapyard | Discovered new exit (range 16) 143 | -11/Scrapyard | Entered Materials 196 | -10/Materials | Discovered new exit (range 5) 300 | -10/Materials | Build established: Mutant 332 | -10/Materials | Discovered new exit (range 3) 446 | -10/Materials | Entered Mines 499 | -10/Mines | Discovered new exit (range 13) 590 | -10/Mines | Discovered new exit (range 3) 595 | -10/Mines | Entered Subcaves 679 | -10/Subcaves | Visited triangular shrine 689 | -10/Subcaves | Found Prototype Device 690 | -10/Subcaves | Identified V3-11A's Pendant 695 | -10/Subcaves | Befriended Subdweller 704 | -10/Subcaves | Identified exit to Materials 795 | -10/Subcaves | Befriended Subdweller 1601 | -10/Subcaves | Visited 4L-MR0's lab 1643 | -10/Subcaves | Found Arachnoskeleton 2000 | -10/Subcaves | Shifting Twisted Machinery released Barrage Gun 2010 | -10/Subcaves | Shifting Twisted Machinery released Battle Rifle 2222 | -10/Subcaves | Shifting Twisted Machinery released Sub. Monowheel 2298 | -10/Subcaves | A swath of the cavern ceiling suddenly collapsed 2483 | -10/Subcaves | Learned location of Zion (-6) 2483 | -10/Subcaves | Met a Zionite searching for "candidates" 2605 | -10/Subcaves | Shifting Twisted Machinery released Humpback 2727 | -10/Subcaves | Disturbed a concealed Subdweller 2730 | -10/Subcaves | Befriended Subdweller 2990 | -10/Subcaves | Shifting Twisted Machinery released Spk. Treads 3142 | -10/Subcaves | Ambushed by Subdweller buried in earth 3145 | -10/Subcaves | Befriended Subdweller 3207 | -10/Subcaves | A swath of the cavern ceiling suddenly collapsed 3365 | -10/Subcaves | Befriended Subdweller 3365 | -10/Subcaves | Befriended Subdweller 3575 | -10/Subcaves | Befriended Subdweller 3585 | -10/Subcaves | Befriended Subdweller 3665 | -10/Subcaves | Befriended Subdweller 3695 | -10/Subcaves | Lost 3 allies 4015 | -10/Subcaves | Befriended Subdweller 4296 | -10/Subcaves | Ambushed by Subdwellers from Twisted Machinery 4300 | -10/Subcaves | Befriended Subdweller 4300 | -10/Subcaves | Befriended Subdweller 4400 | -10/Subcaves | Befriended Subdweller 4856 | -10/Subcaves | Found SUBCON Basin 4959 | -10/Subcaves | Discovered exit to Materials (range 15) 5048 | -10/Subcaves | Build established: Hauler-Mutant 5520 | -10/Subcaves | Discovered new exit (range 14) 5560 | -10/Subcaves | Lost 3 allies 5624 | -10/Subcaves | Entered Recycling 5624 | -7/Recycling | Accompanied by 5 allies 6322 | -7/Recycling | Discovered new exit (range 15) 6644 | -7/Recycling | Scanned before Scraplab entrance 6666 | -7/Recycling | Entered Scraplab 6700 | -7/Recycling | Discovered new exit (range 2) 6701 | -7/Recycling | Entered Scraptown 6701 | -7/Scraptown | Accompanied by 1 ally 6802 | -7/Scraptown | Delivered V3-11A's Pendant to T0-NE2 in exchange for information 7018 | -7/Scraptown | Heard Great Nut preacher, LISTEN AND RECITE! 7121 | -7/Scraptown | Discovered new exit (range 13) 7145 | -7/Scraptown | Scanned Subdweller tech in exchange for log data 7149 | -7/Scraptown | Learned Research terminal intel 7152 | -7/Scraptown | Learned 12 Research zone layouts 7153 | -7/Scraptown | Learned Research machine intel 7155 | -7/Scraptown | Learned Factory emergency access door positions 7257 | -7/Scraptown | Visited Symbiants 7307 | -7/Scraptown | Visited Cave Peace 7358 | -7/Scraptown | Visited CR-KLE's Repair Center 7421 | -7/Scraptown | Visited Shadow of the Wyrm 7458 | -7/Scraptown | Visited UFD Registry 7458 | -7/Scraptown | Registered with UFD as "Deathcase" 7488 | -7/Scraptown | Visited SPCMW 7500 | -7/Scraptown | Visited CPS Storage 7596 | -7/Scraptown | Visited Cyclists 7611 | -7/Scraptown | Entered Cyclist Reading Room 7770 | -7/Scraptown | Visited Supply Room 7829 | -7/Scraptown | Visited A0-MCA Data Center 7842 | -7/Scraptown | Given a C rating by A0-MCA 7848 | -7/Scraptown | Found A0-MCA's Component Scanner 7892 | -7/Scraptown | Visited Research Penetration Think Tank 8024 | -7/Scraptown | Delivered Scrap Shield to a Scientist 8106 | -7/Scraptown | Visited Analyses Database 8165 | -7/Scraptown | Visited Chapter 10 8255 | -7/Scraptown | Visited Curators Association 8286 | -7/Scraptown | Visited Abandonware Association 8307 | -7/Scraptown | Learned abandonware demo "HACKBUD.EXE" 8307 | -7/Scraptown | Learned abandonware demo "REBOOT5.EXE" 8357 | -7/Scraptown | Visited Supply Room 9264 | -7/Scraptown | CR-KLE repaired 6 parts 10247 | -7/Scraptown | Discovered new exit (range 3) 10264 | -7/Scraptown | Entered Factory 10264 | -5/Factory | Accompanied by 1 ally 10264 | -5/Factory | Evolved 10 slots: Propulsion x2, Utility x8 10267 | -5/Factory | Attached Arachnoskeleton, gained temporary slots: Propulsion x3 10361 | -5/Factory | Noticed a derelict Sapper rigging charges 10427 | -5/Factory | Discovered new exit (range 16) 10561 | -5/Factory | Build established: Derelict-Assassin 10756 | -5/Factory | Fabricated Imp. Utility Shielding (x2) 10841 | -5/Factory | Identified exit to Upper Caves 10948 | -5/Factory | Scrapoids reinforcements arrived? 11051 | -5/Factory | Cargo convoy interrupted 11109 | -5/Factory | Core integrity fell below 50% 11114 | -5/Factory | Core integrity fell below 20% 11139 | -5/Factory | Lost 8 parts (1p3n3u1w) 11183 | -5/Factory | Entered Upper Caves 11184 | -5/Upper Caves | Identified exit to Upper Caves 11185 | -5/Upper Caves | UFD Scientist delivered a prototype 11187 | -5/Upper Caves | Found Enh. Scrap Shield 11208 | -5/Upper Caves | Found DCF Scrap (11 items) 11312 | -5/Upper Caves | Entered another Upper Caves area 11322 | -5/Upper Caves | Discovered new exit (range 5) 11322 | -5/Upper Caves | Destroyed by G-50 Soldier with Heavy Laser Last Messages --------------- 11208_ Found 167 Matter. A note is attached: "With love, from the DCF." 11208_ Acquired 55 matter. 11210_ Acquired Antigrav System. 11212_ Acquired 10 matter. 11213_ Dropped Ripper. 11213_ Acquired Mak. Axe. 11215_ Acquired 10 matter. 11217_ System corrupted: Matter fused (-9). 11235_ 6A#A4 RL%0|PI,GXT>MXT,E D8A2Q/,J 11247_ Acquired 9 matter. 11252_ System corrupted: Component data lost. 11262_ Tech Extrapolator generates new schematic "Mak. Coolant Network". Influences: Adv. Heat Sink, Exp. Heat Sink, Adv. Cooling System. 11290_ System corrupted: Heat flow error (+175). 11307_ EO>PFLA=#=P2OGYJ1DAWGIV%Q=AX&EL2WI LOCATION=UPPER CAVES GOAL=ESCAPE 11316_ Acquired Melee Analysis Suite. 11322_ EXIT=FOUND Map ----- +----------------------------------------------------+ | ?????????????????????????????????????????????????? | | ?????????????????????????????????????????????????? | | ?????????????????????????????????????????????????? | | ?????????????????????????????????????????????????? | | ?????????????????????????????????????????????????? | | ?????????????????????????????????????????????????? | | ?????????????????????????????????????????????????? | | ?????????????????????????????????????????????????? | | ?????????????????????????????????????????????????? | | ?????????????????????????????????????????????????? | | ?????????????????????????????????????????????????? | | ?????????????????????????????????????????????????? | | ?????????????????????????????????????????????????? | | ????????????????????????????????#????????????????? | | ??????????????????????????????? #????????????????? | | ???????????????????????????????$#????????????????? | | ???????????????????????????##? #????????????????? | | ??????????????????????????? ## #?????????#??????? | | ?????????????????????????? #???????? #??????? | | ?????????????????????????? b #???????? #??????? | | ?????????????????????????? #???????? #??????? | | ??????????????????????????gg #?######## #??????? | | ??????????????????????????